{"text_format":"2","workbook":"xlsx","n_sheets":6,"sheets":["Costing ","120525","KSA","UAE Bom","Sheet2","KSA Bom"],"not_rendered":{"charts":0,"images":21,"macros":0,"external_links":0,"defined_names":0,"comments":0,"pivot_tables":0},"unopened":[],"bounds":{"document_bytes":16777216,"sheet_cells":100000,"run_cost":"one","rows_first":2000,"rows_last":500,"rows_between":2000,"halvings":0,"cell_chars":16384,"cell_head_chars":4096},"cells_cut":0,"cells_raw":0,"read":"whole","date_system":"1900"}

{"sheet":"Costing ","index":0,"n_rows":63,"n_cols":8,"rows_kept":63,"cut":false,"hidden":true,"merged":[[42,0,42,6],[48,0,48,6],[56,0,56,6],[1,0,1,6],[14,0,14,6],[21,0,21,6],[33,0,33,6],[37,0,37,6]]}
["ITEM DESCRIPTION"," Gross Selling Price","Net Selling Price","Gross Price After 10% Discount","Food Cost","After 10% Discount","REMARKS"]
["SIGNATURE PASTAS "]
["PENNE PINK PASTA",41,{"$f":"B3/1.05","v":39.047619047619044},{"$f":"+B3*90%","v":36.9},6.8227900000000004,{"$f":"+E3*1.05/(C3*90%)","v":0.20385165243902445},null,{"$f":"5.5*K3","v":0}]
["PENNE ARRABIATTA",39,37.142857142857139,35.1,4.4523999999999999,0.13985102564102567,null,0]
["CHICKEN FETTUCCINI ALFREDO",51,48.571428571428569,45.9,9.9060000000000006,0.23793823529411767,null,0]
["CHICKEN PENNE ALFREDO",47,44.761904761904759,42.300000000000004,9.1392399999999991,0.23820359574468086,null,0]
["TRUFFLE MUSHROOM FETTUCCINI",56,53.333333333333329,50.4,9.1761300000000006,0.20072784375,null,0]
["SPAGHETTI BOLOGNESE",47,44.761904761904759,42.300000000000004,6.9285100000000002,0.18058350531914896,null,0]
["LINGUINE FRUTTI DI MARE",49,46.666666666666664,44.1,7.5605200000000004,0.18901300000000001,null,0]
["LASAGNA BOLOGNESE",49,46.666666666666664,44.1,6.2812999999999999,0.15703249999999999,null,0]
["SPAGHETTI PESTO A LA GENOVESE",59,56.19047619047619,53.1,11.47932,0.23834181355932205,null,0]
["RIGATONI AMTRICIANA",46,43.80952380952381,41.4,7.1078299999999999,0.18928460326086957,null,0]
["SPAGHETTI PUTTANESCA",41,39.047619047619044,36.9,5.8674600000000003,0.17530825609756101,null,0]
[]
["SALADS"]
["CHICKEN CAESAR SALAD",46,{"$f":"B16/1.05","v":43.80952380952381},{"$f":"+B16*90%","v":41.4},7.8608000000000002,{"$f":"+E16*1.05/(C16*90%)","v":0.20933652173913042}]
["SICILIAN SALAD",{"$f":"5.5*E17","v":30.635000000000002},29.176190476190477,27.5715,5.57,0.22272727272727275]
["FUSILLI PASTA SALAD",29.959599999999998,28.532952380952377,26.963639999999998,5.4471999999999996,0.22272727272727275]
["CHICKEN PENNE SALAD",46.308900000000001,44.103714285714283,41.67801,8.4198000000000004,0.22272727272727275]
["CAPRESE SALAD",43.682759999999995,41.602628571428568,39.314483999999993,7.9423199999999996,0.22272727272727272]
[]
["SIDES"]
["CHICKEN STRIPS",{"$f":"5.5*E23","v":31.312930000000001},{"$f":"B23/1.05","v":29.821838095238096},{"$f":"+B23*90%","v":28.181637000000002},5.6932600000000004,{"$f":"+E23*1.05/(C23*90%)","v":0.22272727272727275}]
["CHICKEN WINGS  4 pcs",27,25.714285714285712,24.3,{"$f":"(6.8537/6)*4","v":4.5691333333333333},0.20730327160493831]
["CHICKEN WINGS  4pcs",27,25.714285714285712,24.3,{"$f":"(7.8593/6)*4","v":5.2395333333333332},0.23771956790123455]
["SWEET POTATO FRIES",{"$f":"5.5*E26","v":21.612415000000002},20.583252380952381,19.451173500000003,3.9295300000000002,0.22272727272727275]
["MOZZARELLA STICKS",31.438659999999999,29.941580952380949,28.294794,5.7161200000000001,0.22272727272727275]
["TRUFFLE FRIES",25.171299999999999,23.972666666666665,22.654170000000001,4.5766,0.22272727272727275]
["Sicilian Meat Balls ",29,27.619047619047617,26.1,4.7114200000000004,0.19901687931034487]
["FOUR CHEESE ARANCINI",29,27.619047619047617,26.1,5.2959100000000001,0.22370654310344831]
["MUSHROOM & SAFFRON ARANCINI",31,29.523809523809522,27.900000000000002,5.1256599999999999,0.20254624193548387]
["HOMEMADE GARLIC BREAD & MOZZARELLA (1 pc)",6,5.7142857142857144,5.4,0.88407999999999998,0.18049966666666664]
[]
["GNOCCHI"]
["GNOCCHI WHITE SAUCE WITH TRUFFLE",45,{"$f":"B35/1.05","v":42.857142857142854},{"$f":"+B35*90%","v":40.5},8.2746099999999991,{"$f":"+E35*1.05/(C35*90%)","v":0.22525327222222222}]
["GNOCCHI POMODORO",39,37.142857142857139,35.1,6.2888299999999999,0.19753376282051285]
[]
["RISOTTO "]
["TRUFFLE AND WILD MUSHROOM RISOTTO",{"$f":"5.5*E39","v":51.919999999999995},{"$f":"B39/1.05","v":49.447619047619042},{"$f":"+B39*90%","v":46.727999999999994},9.44,{"$f":"+E39*1.05/(C39*90%)","v":0.22272727272727272}]
["SEAFOOD RISOTTO",40,38.095238095238095,36,6.48,0.19845000000000004]
["PUMPKIN RISOTTO WITH CAJUN SHRIMP",{"$f":"5.5*E41","v":46.474999999999994},44.261904761904752,41.827499999999993,8.4499999999999993,0.2227272727272728]
[]
["KID'S MENU"]
["MAC N CHEESE",25,{"$f":"B44/1.05","v":23.80952380952381},{"$f":"+B44*90%","v":22.5},4.7873700000000001,{"$f":"+E44*1.05/(C44*90%)","v":0.23458113}]
["LITTLE CHEF'S BOLOGNESE",19,18.095238095238095,17.100000000000001,3.4293999999999998,0.22110605263157895]
["LITTLE CHEF'S PINK PASTA",19,18.095238095238095,17.100000000000001,3.5864199999999999,0.23122971052631583]
["CHICKEN NUGGETS",19,18.095238095238095,17.100000000000001,3.0082,0.19394973684210526]
[]
["DESSERTS"]
["TIRAMISU",29,{"$f":"B50/1.05","v":27.619047619047617},{"$f":"+B50*90%","v":26.1},6.41,{"$f":"+E50*1.05/(C50*90%)","v":0.27076724137931041}]
["CHOCOLATE FUDGE BROWNIE",12,11.428571428571429,10.8,1.98,0.202125]
["MANGO & PASSION FRUIT PANNACOTTA",{"$f":"5.5*E52","v":14.190000000000001},13.514285714285714,12.771000000000001,2.58,0.22272727272727272]
["ROCKY ROAD",19,18.095238095238095,17.100000000000001,3.58,0.23081578947368425]
["CHOCOLATE COOKIES",10,9.5238095238095237,9,1.42,0.17394999999999999]
["CHOCO ALMOND COOKIES",{"$f":"5.5*E55","v":11.22},10.685714285714285,10.098000000000001,2.04,0.22272727272727275]
[]
["combos"]
["Beat the Heat",39,{"$f":"B58/1.05","v":37.142857142857139},{"$f":"+B58*90%","v":35.1},{"$f":"E13+2.4","v":8.2674599999999998},{"$f":"+E58*1.05/(C58*90%)","v":0.25968303846153851}]
["Classic Meal For 1",59,56.19047619047619,53.1,{"$f":"4.98+E5+2.4","v":17.286000000000001},0.35890423728813564]
["Classic Meal for 2",79,75.238095238095241,71.100000000000009,{"$f":"E32+E5+E6+2.4+2.4+E32","v":25.613399999999995},0.39716981012658215]
["Kids Meal",39,37.142857142857139,35.1,{"$f":"E45+E47+3.01","v":9.4475999999999996},0.29675153846153851]
["Any Two Pasta @35each",70,66.666666666666657,63,{"$f":"E3+E4","v":11.27519},0.19731582500000003]
["Build Your Own Pasta + Fries",60,57.142857142857139,54,null,0]

{"sheet":"120525","index":1,"n_rows":107,"n_cols":12,"rows_kept":107,"cut":false,"hidden":false,"merged":[[76,0,79,0],[82,0,88,0],[91,0,96,0],[99,0,106,0],[5,0,9,0],[13,0,23,0],[27,0,41,0],[44,0,47,0],[51,0,55,0],[59,0,69,0],[72,0,74,0]]}
[]
["Category Name","Dish Name","Dish Name","Menu description (as will appear in the aggregator)","Preferred selling price (including VAT)","Choose Your Pasta\n(Mandatory Min 1, Max 1)","Free Drink\n(Mandatory Min 1, Max 1)"]
["Promo of the month ",null,"Beat the Heat","Truffle Mushroom Fettuccini + OJ.",49,"Truffle Mushroom Fettuccini","Orange Juice"]
[]
["Category Name","Dish Name","Dish Name","Menu description (as will appear in the aggregator)","Preferred selling price (including VAT)","Choose Your 1st Pasta\n(Mandatory Min 1, Max 1)","Choose Your 2nd Pasta\n(Mandatory Min 1, Max 1)"]
["Combo!",null,"Casa TreCinque","Choice of any 2 pastas at 35 each.",70,"Penne Pink Pasta\nPenne Arrabiatta\nSpaghetti Bolognese\nLasagna Bolognese\nSpaghetti Puttanesca\nGnocchi Pomodoro","Penne Pink Pasta\nPenne Arrabiatta\nSpaghetti Bolognese\nLasagna Bolognese\nSpaghetti Puttanesca\nGnocchi Pomodoro"]
[null,"Dish Name","Dish Name","Menu description (as will appear in the aggregator)","Preferred selling price (including VAT)","Choose your 1st Salad\nMin 1 Max 1","Choose your 2nd Salad\nMin 1 Max 1"]
[null,null,"Due Insalate a Scelta","Mix and match any 2 salads at 35 each.",70,"Chicken Caesar Salad\nChicken Penne Salad\nSicilian Tuna Pasta Salad\nFusilli Pasta Salad\nCaprese Salad","Chicken Caesar Salad\nChicken Penne Salad\nSicilian Tuna Pasta Salad\nFusilli Pasta Salad\nCaprese Salad"]
[null,null,"Dish Name","Menu description (as will appear in the aggregator)","Preferred selling price (including VAT)","Choose your Side\nMin  Max 2"]
[null,null,"Scegli 2 Contorni","Choice of any 2 sides at 27 each.",54,"Four Cheese Arancini\nMushroom & Saffron Arancini\nSicilian Meat Balls \n\nChicken Strips\nChicken Wings (4 pcs BBQ)\nChicken Wings (4 pcs Buffalo)\nSweet Potato Fries\nMozzarella Sticks\nTruffle Fries"]
[]
[]
["Category Name","Dish Name","Dish Name","Menu description (as will appear in the aggregator)","Preferred selling price (including VAT)","Choose Your Pasta\n(Mandatory Min 1, Max 1)","Choose Your Side\n(Mandatory Min 1, Max 1)","Free Drink\n(Mandatory Min 1, Max 1)"]
["Meals",null,"Classic Meal For 1","Choice of pasta, served with side and soft drink. ",59,"Truffle Mushroom Fettuccini\nChicken Fettuccini Alfredo\nTruffle Gnocchi\nChicken Penne Alfredo\nLinguine Frutti di Mare\nRigatoni Amatriciana\nPenne Pink Pasta\nPenne Arrabiatta\nSpaghetti Bolognese\nLasagna Bolognese\nSpaghetti Puttanesca\nGnocchi Pomodoro","Chicken Strips\nChicken Wings (6 pcs BBQ)\nChicken Wings (6 pcs Buffalo)\nSweet Potato Fries\nMozzarella Sticks\nTruffle Fries\nSicilian Meat Balls \nFour Cheese Arancini\nMushroom & Saffron Arancini","Orange Juice+8\nCoke\nCoke Zero\nCoke Light\nFanta\nSprite"]
[null,"Dish Name","Dish Name","Menu description (as will appear in the aggregator)","Preferred selling price (including VAT)","Choose Your 1st Pasta\n(Mandatory Min 1, Max 1)","Choose Your 2nd Pasta\n(Mandatory Min 1, Max 1)","Choose Your Side\n(Mandatory Min 1, Max 1)","Free Drink\n(Mandatory Min 1, Max 1)","Free Drink\n(Mandatory Min 1, Max 1)"]
[null,null,"Classic Meal for 2","Choice of 2 pastas, served with Garlic Bread, side and 2 soft drinks.",89,"Truffle Mushroom Fettuccini\nChicken Fettuccini Alfredo\nTruffle Gnocchi\nChicken Penne Alfredo\nLinguine Frutti di Mare\nRigatoni Amatriciana\nPenne Pink Pasta\nPenne Arrabiatta\nSpaghetti Bolognese\nLasagna Bolognese\nSpaghetti Puttanesca\nGnocchi Pomodoro","Truffle Mushroom Fettuccini\nChicken Fettuccini Alfredo\nTruffle Gnocchi\nChicken Penne Alfredo\nLinguine Frutti di Mare\nRigatoni Amatriciana\nPenne Pink Pasta\nPenne Arrabiatta\nSpaghetti Bolognese\nLasagna Bolognese\nSpaghetti Puttanesca\nGnocchi Pomodoro","Chicken Strips\nChicken Wings (6 pcs BBQ)\nChicken Wings (6 pcs Buffalo)\nSweet Potato Fries\nMozzarella Sticks\nTruffle Fries\nSicilian Meat Balls \nFour Cheese Arancini\nMushroom & Saffron Arancini","Orange Juice+8\nCoke\nCoke Zero\nCoke Light\nFanta\nSprite","Orange Juice+8\nCoke\nCoke Zero\nCoke Light\nFanta\nSprite"]
[null,"Dish Name","Dish Name","Menu description (as will appear in the aggregator)","Preferred selling price (including VAT)","Choose Your Pasta\n(Mandatory Min 1, Max 1)","Choose Your Side\n(Mandatory Min 1, Max 1)","Free Drink\n(Mandatory Min 1, Max 1)"]
[null,null,"Kids Meal","Chef's Little Bolognese or Chef's Little Pink Pasta, served with with chicken nuggets and OJ.",39,"Little Chef's Bolognese\nLittle Chef's Pink Pasta","Chicken Nuggets","Orange Juice"]
[null,"Dish Name","Dish Name","Menu description (as will appear in the aggregator)","Preferred selling price (including VAT)","Choose Your Pasta\nMin 1 Max 1","Choose Your Sauce\nMin 1 Max 1","Choose Your Vegetable\nMin 1 Max 1","Choose Your Protein\nMin 1 Max 1","Choose Your Cheese\nMin 1 Max 1","Make it Spicy\nMin 1 Max 1","Choose Your Fries\nMin 1 Max 1"]
[null,null,"Build Your Own Pasta + Fries","Build your own pasta with a choice of base, sauce, protein, served with a complementary side of fries.",55,"Spaghetti\nRigatoni\nFettuccini\nTagliatelle\nPenne\nPotato Gnocchi","Bolognese\nArrabiatta\nAlfredo\nPuttanesca\nPink Sauce\nBasil Pesto","White Mushroom\nZucchini\nCherry Tomato\nBlack Olives\nMixed Bell Pepper\nSundried Tomato\nBaby Spinach\nBasil\nNo Vegetable","Chicken\nShrimp\nSquid\nBeef Bacon\nMeatballs","Mozzarella\nMozzarella Balls\nParmesan\nMixed Cheese\nNo Cheese","Chilli Falkes\nNo Chilli Falkes","French Fries Regular\nFrench Fries Large + 5"]
[null,"Dish Name","Dish Name","Menu description (as will appear in the aggregator)","Preferred selling price (including VAT)","Choose Your  Pinsa\n(Mandatory Min 1 Max 1)","Choose Your Appetizer\n(Mandatory Min Max 1)","Choose Your Drink\n(Mandatory Min  Max 1)"]
[null,"combo 1 (Pinsa+side + drink)","Solo Pinsa Combo","Any 72-hr fermented pinsa + any side + soft drink—light crust, full flavour.",49,"Margherita\nPepperoni \nSpicy Chicken ","Creamy Tomato Soup \nSicillian meat balls \nSweet Potato Fries\nWaffle fries","Coke - 330ml\nDiet Coke - 330ml\nSprite - 330ml\nFanta - 330ml\n"]
[null,"Dish Name","Dish Name","Menu description (as will appear in the aggregator)","Preferred selling price (including VAT)","Choose Your  Pinsa\n(Mandatory Min 1 Max 1)","Choose Your Pasta\n(Mandatory Min 1 Max 1)","Choose Your Drink\n(Mandatory Min 1 Max 1)"]
[null,"Combo for 2(pinza +pasta +2 drinks) ","Share-It-All Combo for 2","One pinsa, one pasta & two drinks—perfect for two, with our airy, digestible crust.",69,"Margherita\nPepperoni \nSpicy Chicken ","\nPENNE PINK PASTA\nPENNE ARRABIATTA\nSPAGHETTI BOLOGNESE\nLASAGNA BOLOGNESE","Coke - 330ml\nDiet Coke - 330ml\nSprite - 330ml\nFanta - 330ml\n"]
[]
[]
["Category Name","Dish Name","Dish Name","Menu description (as will appear in the aggregator)","Preferred selling price (including VAT)","Summer Deal !\n50%off \nmin max 1"]
["Pasta","Fettuccine ai Funghi e Tartufo","Truffle Mushroom Fettuccini","Fettuccine, with a creamy Italian black truffle paste, and sautéed mushrooms with aged Grana Padano.",56,"Coke +4.5\nCoke Zero +4.5\nCoke Light +4.5\nFanta +4.5\nSprite +4.5"]
[null,"Chicken Fettuccini Alfredo","Chicken Fettuccini Alfredo","Fettuccine, with an Alfredo base, sautéed mushrooms and grilled chicken, topped with parsley and aged Grana Padano.",51,"Coke +4.5\nCoke Zero +4.5\nCoke Light +4.5\nFanta +4.5\nSprite +4.5"]
[null,"Gnocchi in Salsa Bianca al Tartufo","Truffle Gnocchi","Gnocchi, with a truffle-laced Alfredo base, sautéed mushrooms and aged Grana Padano.",45,"Coke +4.5\nCoke Zero +4.5\nCoke Light +4.5\nFanta +4.5\nSprite +4.5"]
[null,"Chicken Penne Alfredo","Chicken Penne Alfredo","Penne, with an Alfredo base, sautéed mushrooms and grilled chicken, topped with parsley and aged Grana Padano.",47,"Coke +4.5\nCoke Zero +4.5\nCoke Light +4.5\nFanta +4.5\nSprite +4.5"]
[null,"Linguine ai Frutti di Mare","Linguine Frutti di Mare","Linguine tossed with shrimp, squid, cherry tomatoes, and Alfredo sauce – fresh, flavorful, and ready to enjoy.",49,"Coke +4.5\nCoke Zero +4.5\nCoke Light +4.5\nFanta +4.5\nSprite +4.5"]
[null,"Rigatoni all’Amatriciana","Rigatoni Amatriciana","Rigatoni, in a smoky pomodoro base, mixed in with crispy beef bacon, caramelized onion, and topped with aged Grana Padano.",46,"Coke +4.5\nCoke Zero +4.5\nCoke Light +4.5\nFanta +4.5\nSprite +4.5"]
[null,"Dish Name","Dish Name","Menu description (as will appear in the aggregator)","Preferred selling price (including VAT)","Summer Deal !\n50%off \nmin max 1"]
[null,"Penne Pink Pasta","Penne Pink Pasta","Penne, with a blend of Aflredo-pomodoro sauce, topped with basil and cracked pepper aged Grana Padano.",41,"Coke +4.5\nCoke Zero +4.5\nCoke Light +4.5\nFanta +4.5\nSprite +4.5"]
[null,"Penne all’Arrabbiata","Penne Arrabiatta","Penne, with a garlic-charged pomodoro base, Calabrian chili, fresh basil and aged Grana Padano.",39,"Coke +4.5\nCoke Zero +4.5\nCoke Light +4.5\nFanta +4.5\nSprite +4.5"]
[null,"Spaghetti alla Bolognese","Spaghetti Bolognese","Spaghetti, with our signature beef and tomato ragù, topped with aged Grana Padano.",49,"Coke +4.5\nCoke Zero +4.5\nCoke Light +4.5\nFanta +4.5\nSprite +4.5"]
[null,"Lasagne alla Bolognese","Lasagna Bolognese","Layers of thin pasta,  with our 12-hour beef ragù and dual sauces in between, our blend of Alfredo-pomodoro sauce, topped with molten mozzarella and aged Grana Padano.",49,"Coke +4.5\nCoke Zero +4.5\nCoke Light +4.5\nFanta +4.5\nSprite +4.5"]
[null,"Spaghetti alla Puttanesca","Spaghetti Puttanesca","Spaghetti, with an anchovy-garlic pomodoro, laced with Kalamata olives, capers and cherry tomato, topped with parsley and aged Grana Padano.",41,"Coke +4.5\nCoke Zero +4.5\nCoke Light +4.5\nFanta +4.5\nSprite +4.5"]
[null,"Gnocchi al Pomodoro","Gnocchi Pomodoro","Gnocchi, with a pomodoro base, with melted buffalo mozzarella and basil-pesto drizzle.",39,"Coke +4.5\nCoke Zero +4.5\nCoke Light +4.5\nFanta +4.5\nSprite +4.5"]
[null,"Dish Name","Dish Name","Menu description (as will appear in the aggregator)","Preferred selling price (including VAT)","Choose Your Pasta\nMin 1 Max 1","Choose Your Sauce\nMin 1 Max 1","Choose Your Vegetable\nMin 1 Max 1","Choose Your Protein\nMin 1 Max 1","Choose Your Cheese\nMin 1 Max 1","Make it Spicy\nMin 1 Max 1"]
[null,null,"Build Your Own Pasta","Build your own pasta.",55,"Spaghetti\nRigatoni\nFettuccini\nTagliatelle\nPenne\nPotato Gnocchi","Bolognese\nArrabiatta\nAlfredo\nPuttanesca\nPink Sauce\nBasil Pesto","White Mushroom\nZucchini\nCherry Tomato\nBlack Olives\nMixed Bell Pepper\nSundried Tomato\nBaby Spinach\nBasil\nNo Vegetable","Chicken\nShrimp\nSquid\nBeef Bacon\nMeatballs","Mozzarella\nMozzarella Balls\nParmesan\nMixed Cheese\nNo Cheese","Chilli Falkes\nNo Chilli Falkes"]
[]
["Category Name","Dish Name","Dish Name","Menu description (as will appear in the aggregator)","Preferred selling price (including VAT)"]
["Pinsa ","Margherita","Margherita","A feather-light, oval pinsa base—cold-fermented for 72 hours—cradles bright tomato sauce, silky fior di latte mozzarella and garden-fresh basil leaves. A final drizzle of single-estate extra-virgin olive oil lets the simple flavors shine in pure Roman style.",35]
[null,"Pepperoni ","Pepperoni ","All the guilty pleasure, none of the heaviness: tangy red sauce and creamy mozzarella meet uncured Italian pepperoni that curls into crispy little cups atop our cloud-like crust. A kiss of olive oil amplifies the charred-edge savor.",35]
[null,"Chicken Alfredo ","Chicken Alfredo ","A velvety Alfredo sauce—built on real Grana Padano, not heavy cream—blankets the airy crust. Sautéed mushrooms and herb-marinated chicken add depth, while a sprinkle of parsley lifts the richness. Comfort food, upgraded.",35]
[null,"Spicy Chicken ","Spicy Chicken ","Fire it up: tomato sauce and molten mozzarella carry Nashville-style hot-rubbed chicken, pickled jalapeños and a cooling chive finish. Heat lands fast, then mellows so you can still taste the dough.",35]
[]
[]
["Category Name","Dish Name","Dish Name","Menu description (as will appear in the aggregator)","Preferred selling price (including VAT)"]
["Insalata","Chicken Caesar Salad","Chicken Caesar Salad","Romaine hearts, grilled chicken,  sourdough croutons and aged Grana Padano, served with our anchovy-rich Caesar dressing.",46]
[null,"Tuscan Pesto Penne Salad","Chicken Penne Salad","Peppery arugula, al dente penne and grilled chicken tossed with cherry tomatoes, black olives, mozzarella balls, served with our basil-pesto dressing.",46]
[null,"Sicilian Salad","Sicilian Tuna Pasta Salad","Al dente fusilli tossed with citrus-marinated tuna, sweet corn, crunchy spring onions and sun-dried tomato, served with a side of lemon-oil vinaigrette.",28]
[null,"Fusilli Pasta Salad","Fusilli Pasta Salad","Fusilli tossed with sundried tomatoes, black olives, creamy feta ,crispy onion, and baby spinach, served with our zesty Greek vinaigrette.",30]
[null,"Insalata Caprese","Caprese Salad","Fresh tomatoes, served with buffalo-milk mozzarella, baby arugula leaves, topped with basil, pesto and a balsamic glaze.",44]
[]
[]
["Category Name","Dish Name","Dish Name","Menu description (as will appear in the aggregator)","Preferred selling price (including VAT)"]
["Sides and Snacks",null,"Four Cheese Arancini","Crunchy risotto with a fondue of mozzarella, fontina, provolone and Grana Padano, served over mixed greens with a garlicky aioli dip.",29]
[null,null,"Mushroom & Saffron Arancini","Crispy arancini, made of golden saffron infused risotto and mushrooms, on a bed of rocket-tomato salad. Served with a velvety porcini reduction.",31]
[null,null,"Sicilian Meat Balls ","Hand-rolled beef meatballs, simmered in our bright San Marzano pomodoro, topped with freshly grated Grana Padano and basil.",29]
[{"$nulls":5},"Choose your dipping sauce(Choose min-of 1 & max-of 2)"]
[null,null,"Chicken Strips","Crispy chicken strips, served with a side dipping sauce.",31,"Mayonnaise\nKetchup\nMustard\nTruffle Mushroom Sauce\nSignature Sauce\nSpicy Mayo\nHouse Sauce"]
[null,null,"Chicken Wings (4 pcs BBQ)","Tender chicken wings in a smoky BBQ glaze.",27]
[null,null,"Chicken Wings (4 pcs Buffalo)","Spicy chicken wings coated in a tangy buffalo sauce.",27]
[null,null,"Sweet Potato Fries","Crunchy sweet potato fries.",19]
[null,null,"Mozzarella Sticks","Cheesy crispy breaded mozzarella sticks. The ultimate comfort food.",26]
[null,null,"Truffle Fries","Crispy fries with truffle oil.",25]
[null,null,"Homemade Garlic Bread & Mozzarella (1 pc)","Homemade garlic bread topped with melted mozzarella cheese.",6]
[]
["Category Name","Dish Name","Dish Name","Menu description (as will appear in the aggregator)","Preferred selling price (including VAT)","Add a Chunk of Bread\n(Optional Max 1)"]
["Soups","Zuppa di Broccoli","Broccoli Soup","A solo-sized serving of our signature green blend—light, creamy, and full of vitamin-rich broccoli goodness. A clean, comforting reset.",25,"Chunk of Bread (3.00)"]
[null,"Crema di Funghi","Creamy Mushroom Soup","A rich café-sized cup of velvety mushroom medley—earthy, savory, and luxuriously smooth.",25,"Chunk of Bread (3.00)"]
[null,"Zuppa di Pomodoro","Tomato Soup","A bright, herby bowl of slow-roasted tomato comfort—perfect as a standalone or paired with your wrap or salad.",25,"Chunk of Bread (3.00)"]
["Category Name ","Dish Name","Dish Name","Menu description (as will appear in the aggregator)","Preferred selling price (including VAT)"]
["Kids Menu",null,"Mac N Cheese","Creamy, cheesy macaroni in a velvety cheese sauce.",25]
[null,null,"Little Chef's Bolognese","Twirl-friendly spaghetti, in a beef-tomato ragù, topped with aged Grana Padano.",19]
[null,null,"Little Chef's Pink Pasta","Kid-approved penne coated in pink sauce and a splash of cream, topped with basil and aged Grana Padano.",19]
[null,null,"Chicken Nuggets","Crispy, bite-sized chicken nuggets served with a choice of dipping sauce.",19]
[]
["Category Name ","Dish Name","Dish Name","Menu description (as will appear in the aggregator)","Preferred selling price (including VAT)"]
["Desserts",null,"Mango and Passion Fruit Panna Cotta","A cold Italian silky and creamy dessert serving the sweet and sour taste of the mango and the passion fruit.",20]
[null,null,"Classic Tiramisu Jar","Layer of Tiramisu Mousse, Coffee Cream, with the base of Lady Finger and hazelnut dip in coffee topped with Cacao powder",29]
[null,null,"Chocolate Brownie","Chocolate Brownie",10]
[null,null,"Choco Almond Cookies","\tSavor our Vegan Chocolate Almond Cookies, made with gluten-free and buckwheat flours, vegan butter, brown sugar, almond and coconut powders, and chunks of vegan dark chocolate, perfectly combined with vanilla and a touch of salt for a delightful, guilt-free treat.",11]
[null,null,"Choco Cookie","Relish our Vegan Chocolate Cookies, made with gluten-free flour, coconut oil, brown sugar, coconut milk, ground flaxseed, almond powder, and vegan chocolate chips, enhanced with vanilla for a deliciously rich and satisfying treat.",11]
[null,null,"Mango Cheesecake Jar","\tLayer of Cheese Mousse, Topped with Mango Puree, and base of Biscuit crust.",26]
[null,null,"Classic Rocky Road","Our delicious handmade rocky road is made with mini marshmallows, biscuits, and dark chocolate. Contains dairy and gluten. Served in a box of 4.",19]
[]
["Category Name ","Dish Name","Dish Name","Menu description (as will appear in the aggregator)","Preferred selling price (including VAT)"]
[" Fresh Smoothies | No Added Sugar ",null,"Mango Madness","Mango, Passion Fruit, Pineapple, Apple Juice",27]
[null,null,"Acai Kick","Acai, Blueberry, Mango, Banana, Apple Juice",27]
[null,null,"Green Machine","Broccoli, Spinach, Celery, Mango, Pineapple, Banana, Apple Juice",27]
[null,null,"Tropi Colada","Coconut, Pineapple, Banana, Apple Juice",27]
[null,null,"Caribbean Chill","Mango, Melon, Strawberry, Apple Juice",27]
[null,null,"Strawberry Split","Strawberry, Banana, Papaya, Cherry, Apple Juice",27]
[]
["Category Name ","Dish Name","Dish Name","Menu description (as will appear in the aggregator)","Preferred selling price (including VAT)"]
["Beverages",null,"Water 500ml","Water 500ml",5]
[null,null,"Orange Juice","Orange Juice",15]
[null,null,"Coke","Coke",9]
[null,null,"Coke Zero","Coke Zero",9]
[null,null,"Coke Light","Coke Light",9]
[null,null,"Fanta","Fanta",9]
[null,null,"Sprite","Sprite",9]
[null,null,"Sparkling Water","Sparkling Water",12]

{"sheet":"KSA","index":2,"n_rows":96,"n_cols":12,"rows_kept":96,"cut":false,"hidden":false,"merged":[[88,0,95,0],[48,0,58,0],[5,0,9,0],[13,0,19,0],[23,0,35,0],[40,0,44,0],[61,0,63,0],[65,0,68,0],[71,0,77,0],[80,0,85,0],[71,5,77,5]]}
[]
["Category Name","Dish Name","Dish Name","Menu description (as will appear in the aggregator)","Preferred selling price (including VAT)","Choose Your Pasta\n(Mandatory Min 1, Max 1)","Free Drink\n(Mandatory Min 1, Max 1)"]
["Promo of the month ",null,"Beat the Heat","Truffle Mushroom Fettuccini + OJ.",49,"Truffle Mushroom Fettuccini","Orange Juice"]
[]
["Category Name","Dish Name","Dish Name","Menu description (as will appear in the aggregator)","Preferred selling price (including VAT)","Choose Your 1st Pasta\n(Mandatory Min 1, Max 1)","Choose Your 2nd Pasta\n(Mandatory Min 1, Max 1)"]
["Combo!",null,"Casa TreCinque","Choice of any 2 pastas at 35 each.",70,"Penne Pink Pasta\nPenne Arrabiatta\nSpaghetti Bolognese\nLasagna Bolognese\nSpaghetti Puttanesca","Penne Pink Pasta\nPenne Arrabiatta\nSpaghetti Bolognese\nLasagna Bolognese\nSpaghetti Puttanesca"]
[null,"Dish Name","Dish Name","Menu description (as will appear in the aggregator)","Preferred selling price (including VAT)","Choose your 1st Salad\nMin 1 Max 1","Choose your 2nd Salad\nMin 1 Max 1"]
[null,null,"Due Insalate a Scelta","Mix and match any 2 salads at 35 each.",70,"Chicken Caesar Salad\nChicken Penne Salad\nSicilian Tuna Pasta Salad\nFusilli Pasta Salad\nCaprese Salad","Chicken Caesar Salad\nChicken Penne Salad\nSicilian Tuna Pasta Salad\nFusilli Pasta Salad\nCaprese Salad"]
[null,null,"Dish Name","Menu description (as will appear in the aggregator)","Preferred selling price (including VAT)","Choose your Side\nMin  Max 2"]
[null,null,"Scegli 2 Contorni","Choice of any 2 sides at 27 each.",54,"Four Cheese Arancini\nMushroom & Saffron Arancini\nSicilian Meat Balls \n\nChicken Strips\nChicken Wings (4 pcs BBQ)\nChicken Wings (4 pcs Buffalo)\nSweet Potato Fries\nMozzarella Sticks\nTruffle Fries"]
[]
[]
["Category Name","Dish Name","Dish Name","Menu description (as will appear in the aggregator)","Preferred selling price (including VAT)","Choose Your Pasta\n(Mandatory Min 1, Max 1)","Choose Your Side\n(Mandatory Min 1, Max 1)","Free Drink\n(Mandatory Min 1, Max 1)"]
["Meals",null,"Classic Meal For 1","Choice of pasta, served with side and soft drink. ",59,"Truffle Mushroom Fettuccini\nChicken Fettuccini Alfredo\nChicken Penne Alfredo\nLinguine Frutti di Mare\nRigatoni Amatriciana\nPenne Pink Pasta\nPenne Arrabiatta\nSpaghetti Bolognese\nLasagna Bolognese\nSpaghetti Puttanesca","Chicken Strips\nChicken Wings (6 pcs BBQ)\nChicken Wings (6 pcs Buffalo)\nSweet Potato Fries\nMozzarella Sticks\nTruffle Fries\nSicilian Meat Balls \nFour Cheese Arancini\nMushroom & Saffron Arancini","Orange Juice+8\nCoke\nCoke Zero\nCoke Light\nFanta\nSprite"]
[null,"Dish Name","Dish Name","Menu description (as will appear in the aggregator)","Preferred selling price (including VAT)","Choose Your 1st Pasta\n(Mandatory Min 1, Max 1)","Choose Your 2nd Pasta\n(Mandatory Min 1, Max 1)","Choose Your Side\n(Mandatory Min 1, Max 1)","Free Drink\n(Mandatory Min 1, Max 1)","Free Drink\n(Mandatory Min 1, Max 1)"]
[null,null,"Classic Meal for 2","Choice of 2 pastas, served with Garlic Bread, side and 2 soft drinks.",89,"Truffle Mushroom Fettuccini\nChicken Fettuccini Alfredo\nChicken Penne Alfredo\nLinguine Frutti di Mare\nRigatoni Amatriciana\nPenne Pink Pasta\nPenne Arrabiatta\nSpaghetti Bolognese\nLasagna Bolognese\nSpaghetti Puttanesca","Truffle Mushroom Fettuccini\nChicken Fettuccini Alfredo\nChicken Penne Alfredo\nLinguine Frutti di Mare\nRigatoni Amatriciana\nPenne Pink Pasta\nPenne Arrabiatta\nSpaghetti Bolognese\nLasagna Bolognese\nSpaghetti Puttanesca","Chicken Strips\nChicken Wings (6 pcs BBQ)\nChicken Wings (6 pcs Buffalo)\nSweet Potato Fries\nMozzarella Sticks\nTruffle Fries\nSicilian Meat Balls \nFour Cheese Arancini\nMushroom & Saffron Arancini","Orange Juice+8\nCoke\nCoke Zero\nCoke Light\nFanta\nSprite","Orange Juice+8\nCoke\nCoke Zero\nCoke Light\nFanta\nSprite"]
[null,"Dish Name","Dish Name","Menu description (as will appear in the aggregator)","Preferred selling price (including VAT)","Choose Your Pasta\n(Mandatory Min 1, Max 1)","Choose Your Side\n(Mandatory Min 1, Max 1)","Free Drink\n(Mandatory Min 1, Max 1)"]
[null,null,"Kids Meal","Chef's Little Bolognese or Chef's Little Pink Pasta, served with with chicken nuggets and OJ.",39,"Little Chef's Bolognese\nLittle Chef's Pink Pasta","Chicken Nuggets","Orange Juice"]
[null,"Dish Name","Dish Name","Menu description (as will appear in the aggregator)","Preferred selling price (including VAT)","Choose Your Pasta\nMin 1 Max 1","Choose Your Sauce\nMin 1 Max 1","Choose Your Vegetable\nMin 1 Max 1","Choose Your Protein\nMin 1 Max 1","Choose Your Cheese\nMin 1 Max 1","Make it Spicy\nMin 1 Max 1","Choose Your Fries\nMin 1 Max 1"]
[null,null,"Build Your Own Pasta + Fries","Build your own pasta with a choice of base, sauce, protein, served with a complementary side of fries.",55,"Spaghetti\nRigatoni\nFettuccini\nTagliatelle\nPenne","Bolognese\nArrabiatta\nAlfredo\nPuttanesca\nPink Sauce\nBasil Pesto","White Mushroom\nZucchini\nCherry Tomato\nBlack Olives\nMixed Bell Pepper\nSundried Tomato\nBaby Spinach\nBasil\nNo Vegetable","Chicken\nShrimp\nBeef Bacon\nMeatballs","Mozzarella\nMozzarella Buffalo\nParmesan\nMixed Cheese\nNo Cheese","Chilli Falkes\nNo Chilli Falkes","French Fries Regular\nFrench Fries Large + 5"]
[]
[]
["Category Name","Dish Name","Dish Name","Menu description (as will appear in the aggregator)","Preferred selling price (including VAT)","Summer Deal !\n50%off \nmin max 1"]
["Pasta","Fettuccine ai Funghi e Tartufo","Truffle Mushroom Fettuccini","Fettuccine, with a creamy Italian black truffle paste, and sautéed mushrooms with aged Grana Padano.",56,"Coke +4.5\nCoke Zero +4.5\nCoke Light +4.5\nFanta +4.5\nSprite +4.5","62aed check the cost if we will add or not"]
[null,"Chicken Fettuccini Alfredo","Chicken Fettuccini Alfredo","Fettuccine, with an Alfredo base, sautéed mushrooms and grilled chicken, topped with parsley and aged Grana Padano.",51,"Coke +4.5\nCoke Zero +4.5\nCoke Light +4.5\nFanta +4.5\nSprite +4.5"]
[null,"Chicken Penne Alfredo","Chicken Penne Alfredo","Penne, with an Alfredo base, sautéed mushrooms and grilled chicken, topped with parsley and aged Grana Padano.",47,"Coke +4.5\nCoke Zero +4.5\nCoke Light +4.5\nFanta +4.5\nSprite +4.5"]
[null,"Linguine ai Frutti di Mare","Linguine Frutti di Mare","Linguine tossed with shrimp, cherry tomatoes, and Alfredo sauce – fresh, flavorful, and ready to enjoy.",49,"Coke +4.5\nCoke Zero +4.5\nCoke Light +4.5\nFanta +4.5\nSprite +4.5","use only shrimp"]
[null,"Rigatoni all’Amatriciana","Rigatoni Amatriciana","Rigatoni, in a smoky pomodoro base, mixed in with crispy beef bacon, caramelized onion, and topped with aged Grana Padano.",46,"Coke +4.5\nCoke Zero +4.5\nCoke Light +4.5\nFanta +4.5\nSprite +4.5","need to go be live"]
[null,"Dish Name","Dish Name","Menu description (as will appear in the aggregator)","Preferred selling price (including VAT)","Summer Deal !\n50%off \nmin max 1"]
[null,"Penne Pink Pasta","Penne Pink Pasta","Penne, with a blend of Aflredo-pomodoro sauce, topped with basil and cracked pepper aged Grana Padano.",41,"Coke +4.5\nCoke Zero +4.5\nCoke Light +4.5\nFanta +4.5\nSprite +4.5","ok"]
[null,"Penne all’Arrabbiata","Penne Arrabiatta","Penne, with a garlic-charged pomodoro base, Calabrian chili, fresh basil and aged Grana Padano.",39,"Coke +4.5\nCoke Zero +4.5\nCoke Light +4.5\nFanta +4.5\nSprite +4.5","ok"]
[null,"Spaghetti alla Bolognese","Spaghetti Bolognese","Spaghetti, with our signature beef and tomato ragù, topped with aged Grana Padano.",49,"Coke +4.5\nCoke Zero +4.5\nCoke Light +4.5\nFanta +4.5\nSprite +4.5","ok"]
[null,"Lasagne alla Bolognese","Lasagna Bolognese","Layers of thin pasta,  with our 12-hour beef ragù and dual sauces in between, our blend of Alfredo-pomodoro sauce, topped with molten mozzarella and aged Grana Padano.",49,"Coke +4.5\nCoke Zero +4.5\nCoke Light +4.5\nFanta +4.5\nSprite +4.5","ok"]
[null,"Spaghetti alla Puttanesca","Spaghetti Puttanesca","Spaghetti, with an anchovy-garlic pomodoro, laced with Kalamata olives, capers and cherry tomato, topped with parsley and aged Grana Padano.",41,"Coke +4.5\nCoke Zero +4.5\nCoke Light +4.5\nFanta +4.5\nSprite +4.5","ok"]
[null,"Dish Name","Dish Name","Menu description (as will appear in the aggregator)","Preferred selling price (including VAT)","Choose Your Pasta\nMin 1 Max 1","Choose Your Sauce\nMin 1 Max 1","Choose Your Vegetable\nMin 1 Max 1","Choose Your Protein\nMin 1 Max 1","Choose Your Cheese\nMin 1 Max 1","Make it Spicy\nMin 1 Max 1"]
[null,null,"Build Your Own Pasta","Build your own pasta.",55,"Spaghetti\nRigatoni\nFettuccini\nTagliatelle\nPenne","Bolognese\nArrabiatta\nAlfredo\nPuttanesca\nPink Sauce\nBasil Pesto","White Mushroom\nZucchini\nCherry Tomato\nBlack Olives\nMixed Bell Pepper\nSundried Tomato\nBaby Spinach\nBasil\nNo Vegetable","Chicken\nShrimp\nBeef Bacon\nMeatballs","Mozzarella\nMozzarella Balls\nParmesan\nMixed Cheese\nNo Cheese","Chilli Falkes\nNo Chilli Falkes"]
[]
[]
[]
["Category Name","Dish Name","Dish Name","Menu description (as will appear in the aggregator)","Preferred selling price (including VAT)"]
["Insalata","Chicken Caesar Salad","Chicken Caesar Salad","Romaine hearts, grilled chicken,  sourdough croutons and aged Grana Padano, served with our anchovy-rich Caesar dressing.",46]
[null,"Tuscan Pesto Penne Salad","Chicken Penne Salad","Peppery arugula, al dente penne and grilled chicken tossed with cherry tomatoes, black olives, mozzarella balls, served with our basil-pesto dressing.",46]
[null,"Sicilian Salad","Sicilian Tuna Pasta Salad","Al dente fusilli tossed with citrus-marinated tuna, sweet corn, crunchy spring onions and sun-dried tomato, served with a side of lemon-oil vinaigrette.",28]
[null,"Fusilli Pasta Salad","Fusilli Pasta Salad","Fusilli tossed with sundried tomatoes, black olives, creamy feta ,crispy onion, and baby spinach, served with our zesty Greek vinaigrette.",30]
[null,"Insalata Caprese","Caprese Salad","Fresh tomatoes, served with buffalo-milk mozzarella, baby arugula leaves, topped with basil, pesto and a balsamic glaze.",44]
[]
[]
["Category Name","Dish Name","Dish Name","Menu description (as will appear in the aggregator)","Preferred selling price (including VAT)"]
["Sides and Snacks",null,"Four Cheese Arancini","Crunchy risotto with a fondue of mozzarella, fontina, provolone and Grana Padano, served over mixed greens with a garlicky aioli dip.",29]
[null,null,"Mushroom & Saffron Arancini","Crispy arancini, made of golden saffron infused risotto and mushrooms, on a bed of rocket-tomato salad. Served with a velvety porcini reduction.",31]
[null,null,"Sicilian Meat Balls ","Hand-rolled beef meatballs, simmered in our bright San Marzano pomodoro, topped with freshly grated Grana Padano and basil.",29]
[{"$nulls":5},"Choose your dipping sauce(Choose min-of 1 & max-of 2)"]
[null,null,"Chicken Strips","Crispy chicken strips, served with a side dipping sauce.",31,"Mayonnaise\nKetchup\nMustard\nTruffle Mushroom Sauce\nSignature Sauce\nSpicy Mayo\nHouse Sauce"]
[null,null,"Chicken Wings (4 pcs BBQ)","Tender chicken wings in a smoky BBQ glaze.",27]
[null,null,"Chicken Wings (4 pcs Buffalo)","Spicy chicken wings coated in a tangy buffalo sauce.",27]
[null,null,"Sweet Potato Fries","Crunchy sweet potato fries.",19]
[null,null,"Mozzarella Sticks","Cheesy crispy breaded mozzarella sticks. The ultimate comfort food.",26]
[null,null,"Truffle Fries","Crispy fries with truffle oil.",25]
[null,null,"Homemade Garlic Bread & Mozzarella (1 pc)","Homemade garlic bread topped with melted mozzarella cheese.",6,"make same uae"]
[]
["Category Name","Dish Name","Dish Name","Menu description (as will appear in the aggregator)","Preferred selling price (including VAT)","Add a Chunk of Bread\n(Optional Max 1)"]
["Soups","Zuppa di Broccoli","Broccoli Soup","A solo-sized serving of our signature green blend—light, creamy, and full of vitamin-rich broccoli goodness. A clean, comforting reset.",25,"Chunk of Bread (3.00)"]
[null,"Crema di Funghi","Creamy Mushroom Soup","A rich café-sized cup of velvety mushroom medley—earthy, savory, and luxuriously smooth.",25,"Chunk of Bread (3.00)"]
[null,"Zuppa di Pomodoro","Tomato Soup","A bright, herby bowl of slow-roasted tomato comfort—perfect as a standalone or paired with your wrap or salad.",25,"Chunk of Bread (3.00)"]
["Category Name ","Dish Name","Dish Name","Menu description (as will appear in the aggregator)","Preferred selling price (including VAT)"]
["Kids Menu",null,"Mac N Cheese","Creamy, cheesy macaroni in a velvety cheese sauce.",25]
[null,null,"Little Chef's Bolognese","Twirl-friendly spaghetti, in a beef-tomato ragù, topped with aged Grana Padano.",19]
[null,null,"Little Chef's Pink Pasta","Kid-approved penne coated in pink sauce and a splash of cream, topped with basil and aged Grana Padano.",19]
[null,null,"Chicken Nuggets","Crispy, bite-sized chicken nuggets served with a choice of dipping sauce.",19]
[]
["Category Name ","Dish Name","Dish Name","Menu description (as will appear in the aggregator)","Preferred selling price (including VAT)"]
["Desserts",null,"Mango and Passion Fruit Panna Cotta","A cold Italian silky and creamy dessert serving the sweet and sour taste of the mango and the passion fruit.",20,"put KSA Desserts"]
[null,null,"Classic Tiramisu Jar","Layer of Tiramisu Mousse, Coffee Cream, with the base of Lady Finger and hazelnut dip in coffee topped with Cacao powder",29]
[null,null,"Chocolate Brownie","Chocolate Brownie",10]
[null,null,"Choco Almond Cookies","\tSavor our Vegan Chocolate Almond Cookies, made with gluten-free and buckwheat flours, vegan butter, brown sugar, almond and coconut powders, and chunks of vegan dark chocolate, perfectly combined with vanilla and a touch of salt for a delightful, guilt-free treat.",11]
[null,null,"Choco Cookie","Relish our Vegan Chocolate Cookies, made with gluten-free flour, coconut oil, brown sugar, coconut milk, ground flaxseed, almond powder, and vegan chocolate chips, enhanced with vanilla for a deliciously rich and satisfying treat.",11]
[null,null,"Mango Cheesecake Jar","\tLayer of Cheese Mousse, Topped with Mango Puree, and base of Biscuit crust.",26]
[null,null,"Classic Rocky Road","Our delicious handmade rocky road is made with mini marshmallows, biscuits, and dark chocolate. Contains dairy and gluten. Served in a box of 4.",19]
[]
["Category Name ","Dish Name","Dish Name","Menu description (as will appear in the aggregator)","Preferred selling price (including VAT)"]
[" Fresh Smoothies | No Added Sugar ",null,"Mango Madness","Mango, Passion Fruit, Pineapple, Apple Juice",27]
[null,null,"Acai Kick","Acai, Blueberry, Mango, Banana, Apple Juice",27]
[null,null,"Green Machine","Broccoli, Spinach, Celery, Mango, Pineapple, Banana, Apple Juice",27]
[null,null,"Tropi Colada","Coconut, Pineapple, Banana, Apple Juice",27]
[null,null,"Caribbean Chill","Mango, Melon, Strawberry, Apple Juice",27]
[null,null,"Strawberry Split","Strawberry, Banana, Papaya, Cherry, Apple Juice",27]
[]
["Category Name ","Dish Name","Dish Name","Menu description (as will appear in the aggregator)","Preferred selling price (including VAT)"]
["Beverages",null,"Water 500ml","Water 500ml",5]
[null,null,"Orange Juice","Orange Juice",15]
[null,null,"Coke","Coke",9]
[null,null,"Coke Zero","Coke Zero",9]
[null,null,"Coke Light","Coke Light",9]
[null,null,"Fanta","Fanta",9]
[null,null,"Sprite","Sprite",9]
[null,null,"Sparkling Water","Sparkling Water",12]

{"sheet":"UAE Bom","index":3,"n_rows":278,"n_cols":4,"rows_kept":278,"cut":false,"hidden":false,"merged":[[2,4,16,4],[19,4,33,4],[36,4,50,4],[53,4,70,4],[73,4,86,4],[89,4,101,4],[104,4,117,4],[120,4,132,4],[135,4,142,4],[145,4,162,4],[227,4,234,4],[245,4,247,4],[250,4,262,4],[265,4,277,4],[165,4,171,4],[174,4,182,4],[185,4,192,4],[195,4,204,4],[207,4,214,4],[217,4,224,4],[237,4,242,4]]}
[null,"PASTA & CO"]
[null,"Truffle Mushroom Fettuccini"]
[null,"OLIVE OIL (Transferable)",15,"g"]
[null,"WHITE ONION (Transferable)",3,"g"]
[null,"GARLIC WHOLE (Transferable)",2,"gr"]
[null,"MUSHROOM MIXTURE (Transferable)",40,"g"]
[null,"ALFREDO SAUCE (Transferable)",200,"g"]
[null,"VEGETABLE STOCK (Transferable)",150,"g"]
[null,"SALT (Transferable)",3,"g"]
[null,"BLACK PEPPER POWDER (Transferable)",1,"g"]
[null,"BLACK TRUFFLE PASTE (Transferable)",15,"g"]
[null,"Z FETTUCCINI PASTA COOKED",180,"g"]
[null,"GRANA PADANO (Transferable)",5,"g"]
[null,"BUTTER (Transferable)",20,"g"]
[null,"PARSLEY (Transferable)",1,"g"]
[null,"GRANA PADANO (Transferable)",15,"g"]
[null,"WHITE BOWL & LID 1000ML SWHK",1,"Kitchen Unit(s)"]
[]
[null,"Chicken Fettuccini Alfredo"]
[null,"OLIVE OIL (Transferable)",10,"g"]
[null,"GARLIC WHOLE (Transferable)",3,"gr"]
[null,"Z GRILLED CHICKEN (CUBES)",65,"g"]
[null,"MUSHROOM MIXTURE (Transferable)",50,"g"]
[null,"ALFREDO SAUCE (Transferable)",200,"g"]
[null,"VEGETABLE STOCK (Transferable)",150,"g"]
[null,"SALT (Transferable)",1,"g"]
[null,"BLACK PEPPER POWDER (Transferable)",1,"g"]
[null,"Z FETTUCCINI PASTA COOKED",180,"g"]
[null,"BUTTER (Transferable)",15,"g"]
[null,"PARSLEY (Transferable)",1,"g"]
[null,"GRANA PADANO (Transferable)",20,"g"]
[null,"GRANA PADANO (Transferable)",5,"g"]
[null,"PARSLEY (Transferable)",1,"g"]
[null,"WHITE BOWL & LID 1000ML SWHK",1,"Kitchen Unit(s)"]
[]
[null,"Chicken Penne Alfredo"]
[null,"OLIVE OIL (Transferable)",10,"g"]
[null,"GARLIC WHOLE (Transferable)",3,"gr"]
[null,"Z GRILLED CHICKEN (CUBES)",70,"g"]
[null,"MUSHROOM MIXTURE (Transferable)",50,"g"]
[null,"ALFREDO SAUCE (Transferable)",200,"g"]
[null,"VEGETABLE STOCK (Transferable)",150,"g"]
[null,"SALT (Transferable)",1,"g"]
[null,"BLACK PEPPER POWDER (Transferable)",1,"g"]
[null,"Z PENNE PASTA",200,"g"]
[null,"BUTTER (Transferable)",15,"g"]
[null,"GRANA PADANO (Transferable)",20,"g"]
[null,"PARSLEY (Transferable)",1,"g"]
[null,"GRANA PADANO (Transferable)",5,"g"]
[null,"PARSLEY (Transferable)",2,"g"]
[null,"WHITE BOWL & LID 1000ML SWHK",1,"Kitchen Unit(s)"]
[]
[null,"Linguine Frutti di Mare"]
[null,"OLIVE OIL (Transferable)",15,"g"]
[null,"WHITE ONION (Transferable)",5,"g"]
[null,"GARLIC WHOLE (Transferable)",3,"gr"]
[null,"CHERRY TOMATO RED (Transferable)",30,"g"]
[null,"Z SHRIMP RAW (thawed)",50,"g"]
[null,"SQUID RING (Transferable)",30,"g"]
[null,"CHILI FLAKES (Transferable)",1,"g"]
[null,"POMODORO SAUCE (Transferable)",200,"g"]
[null,"VEGETABLE STOCK (Transferable)",150,"g"]
[null,"SALT (Transferable)",1,"g"]
[null,"BLACK PEPPER POWDER (Transferable)",1,"g"]
[null,"BUTTER (Transferable)",10,"g"]
[null,"Z LINGUINE PASTA",1,"Unit"]
[null,"GRANA PADANO (Transferable)",20,"g"]
[null,"ALFREDO SAUCE (Transferable)",20,"g"]
[null,"FRESH BASIL (Transferable)",2,"g"]
[null,"FRESH BASIL (Transferable)",2,"g"]
[null,"WHITE BOWL & LID 1000ML SWHK",1,"Kitchen Unit(s)"]
[]
[null,"Rigatoni Amatriciana"]
[null,"OLIVE OIL (Transferable)",15,"g"]
[null,"CRISPY BEEF BACON (Transferable)",30,"g"]
[null,"CARAMELIZED ONION (Transferable)",20,"g"]
[null,"POMODORO SAUCE (Transferable)",200,"g"]
[null,"VEGETABLE STOCK (Transferable)",150,"g"]
[null,"SALT (Transferable)",1,"g"]
[null,"BLACK PEPPER POWDER (Transferable)",1,"g"]
[null,"Z RIGATONI PASTA (Cooked)",200,"g"]
[null,"BUTTER (Transferable)",10,"g"]
[null,"GRANA PADANO (Transferable)",15,"g"]
[null,"PARSLEY (Transferable)",1,"g"]
[null,"GRANA PADANO (Transferable)",5,"g"]
[null,"CRISPY BEEF BACON (Transferable)",10,"g"]
[null,"WHITE BOWL & LID 1000ML SWHK",1,"Kitchen Unit(s)"]
[]
[null,"Penne Pink Pasta"]
[null,"POMODORO SAUCE (Transferable)",200,"g"]
[null,"ALFREDO SAUCE (Transferable)",150,"g"]
[null,"SALT (Transferable)",1,"g"]
[null,"BLACK PEPPER POWDER (Transferable)",1,"g"]
[null,"VEGETABLE STOCK (Transferable)",150,"g"]
[null,"Z PENNE PASTA",200,"g"]
[null,"BUTTER (Transferable)",15,"g"]
[null,"GRANA PADANO (Transferable)",20,"g"]
[null,"FRESH BASIL (Transferable)",2,"g"]
[null,"GRANA PADANO (Transferable)",5,"g"]
[null,"FRESH BASIL (Transferable)",1,"g"]
[null,"PARSLEY (Transferable)",1,"g"]
[null,"WHITE BOWL & LID 1000ML SWHK",1,"Kitchen Unit(s)"]
[]
[null,"Penne Arrabiatta"]
[null,"OLIVE OIL (Transferable)",10,"g"]
[null,"GARLIC WHOLE (Transferable)",3,"gr"]
[null,"CHILI FLAKES (Transferable)",1,"g"]
[null,"CHERRY TOMATO RED (Transferable)",30,"g"]
[null,"POMODORO SAUCE (Transferable)",200,"g"]
[null,"VEGETABLE STOCK (Transferable)",150,"g"]
[null,"SALT (Transferable)",2,"g"]
[null,"BLACK PEPPER POWDER (Transferable)",1,"g"]
[null,"Z PENNE PASTA",200,"g"]
[null,"BUTTER (Transferable)",10,"g"]
[null,"FRESH BASIL (Transferable)",2,"g"]
[null,"GRANA PADANO (Transferable)",5,"g"]
[null,"FRESH BASIL (Transferable)",1,"g"]
[null,"WHITE BOWL & LID 1000ML SWHK",1,"Kitchen Unit(s)"]
[]
[null,"Spaghetti Bolognese"]
[null,"BOLOGNESE SAUCE (Transferable)",220,"g"]
[null,"POMODORO SAUCE (Transferable)",100,"g"]
[null,"VEGETABLE STOCK (Transferable)",150,"g"]
[null,"SALT (Transferable)",1,"g"]
[null,"BLACK PEPPER POWDER (Transferable)",1,"g"]
[null,"Z SPAGHETTI PASTA (Cooked)",200,"g"]
[null,"PARSLEY (Transferable)",1,"g"]
[null,"OLIVE OIL (Transferable)",5,"g"]
[null,"BUTTER (Transferable)",10,"g"]
[null,"GRANA PADANO (Transferable)",15,"g"]
[null,"FRESH BASIL (Transferable)",2,"g"]
[null,"GRANA PADANO (Transferable)",5,"g"]
[null,"WHITE BOWL & LID 1000ML SWHK",1,"Kitchen Unit(s)"]
[]
[null,"Lasagna Bolognese"]
[null,"LASAGNA BOLOGNESE (Transferable)",1,"Unit"]
[null,"POMODORO SAUCE (Transferable)",30,"g"]
[null,"ALFREDO SAUCE (Transferable)",30,"g"]
[null,"VEGETABLE STOCK (Transferable)",15,"g"]
[null,"MOZZARELLA SHREDDED (Transferable)",10,"g"]
[null,"GRANA PADANO (Transferable)",5,"g"]
[null,"FRESH BASIL (Transferable)",1,"g"]
[null,"WHITE BOWL & LID SMALL 750ML",1,"Kitchen Unit(s)"]
[]
[null,"Spaghetti Puttanesca"]
[null,"OLIVE OIL (Transferable)",15,"g"]
[null,"GARLIC WHOLE (Transferable)",3,"gr"]
[null,"WHITE ONION (Transferable)",5,"g"]
[null,"ANCHOVIES (Transferable)",15,"g"]
[null,"KALAMATA OLIVES (Transferable)",20,"g"]
[null,"CHERRY TOMATO RED (Transferable)",30,"g"]
[null,"CAPERS (Transferable)",10,"g"]
[null,"POMODORO SAUCE (Transferable)",200,"g"]
[null,"VEGETABLE STOCK (Transferable)",200,"g"]
[null,"SALT (Transferable)",1,"g"]
[null,"BLACK PEPPER POWDER (Transferable)",1,"g"]
[null,"Z SPAGHETTI PASTA (Cooked)",200,"g"]
[null,"PARSLEY (Transferable)",1,"g"]
[null,"FRESH BASIL (Transferable)",1,"g"]
[null,"GRANA PADANO (Transferable)",15,"g"]
[null,"CAPERS (Transferable)",5,"g"]
[null,"GRANA PADANO (Transferable)",5,"g"]
[null,"WHITE BOWL & LID 1000ML SWHK",1,"Kitchen Unit(s)"]
[]
[null,"Chicken Caesar Salad"]
[null,"ROMAINE (Transferable)",180,"g"]
[null,"Z GRILLED CHICKEN (SLICED)",80,"g"]
[null,"GRANA PADANO (Transferable)",30,"g"]
[null,"CROUTONS (Transferable)",20,"g"]
[null,"CAESAR DRESSING (Transferable)",60,"g"]
[null,"WHITE BOWL & LID LARGE 1300ML",1,"Kitchen Unit(s)"]
[null,"SAUCE CONTAINER 2OZ",1,"Unit"]
[]
[null,"Chicken Penne Salad"]
[null,"ARUGULA (Transferable)",15,"g"]
[null,"Z PENNE PASTA",150,"g"]
[null,"Z GRILLED CHICKEN (SLICED)",80,"g"]
[null,"CHERRY TOMATO RED (Transferable)",40,"g"]
[null,"BLACK OLIVES (Transferable)",20,"g"]
[null,"MOZZARELLA BALLS (Transferable)",50,"g"]
[null,"PESTO SAUCE (Transferable) (SC)",40,"g"]
[null,"SAUCE CONTAINER 2OZ",1,"Unit"]
[null,"WHITE BOWL & LID SMALL 750ML",1,"Kitchen Unit(s)"]
[]
[null,"Sicilian Tuna Pasta Salad"]
[null,"Z FUSILLI PASTA (Cooked)",150,"g"]
[null,"TUNA MIX (Transferable)",80,"g"]
[null,"SWEET CORN (Transferable)",40,"g"]
[null,"SPRING ONIONS CUT (Transferable)",15,"g"]
[null,"SUNDRIED TOMATO (Transferable)",40,"g"]
[null,"LEMON AND OLIVE OIL (Transferable)",40,"g"]
[null,"SAUCE CONTAINER 2OZ",1,"Unit"]
[null,"WHITE BOWL & LID 1000ML SWHK",1,"Kitchen Unit(s)"]
[]
[null,"Fusilli Pasta Salad"]
[null,"Z FUSILLI PASTA (Cooked)",150,"g"]
[null,"BABY SPINACH (Transferable)",30,"g"]
[null,"SUNDRIED TOMATO (Transferable)",40,"g"]
[null,"CHERRY TOMATO RED (Transferable)",40,"g"]
[null,"BLACK OLIVES (Transferable)",10,"g"]
[null,"FETA (Transferable)",40,"g"]
[null,"RED ONION SLICED (Transferable)",2,"g"]
[null,"GREEK VINAIGRETTE (Transferable)",40,"g"]
[null,"SAUCE CONTAINER 2OZ",1,"Unit"]
[null,"WHITE BOWL & LID LARGE 1300ML",1,"Kitchen Unit(s)"]
[]
[null,"Caprese Salad"]
[null,"ARUGULA (Transferable)",15,"g"]
[null,"TOMATO (Transferable)",200,"g"]
[null,"MOZZARELLA BUFFALO (Transferable)",125,"g"]
[null,"PESTO SAUCE (Transferable) (SC)",10,"g"]
[null,"FRESH BASIL (Transferable)",3,"g"]
[null,"BALSAMIC GLAZE",10,"g"]
[null,"OLIVE OIL (Transferable)",5,"g"]
[null,"WHITE BOWL & LID SMALL 750ML",1,"Kitchen Unit(s)"]
[]
[null,"Four Cheese Arancini"]
[null,"MIXED GREENS (Transferable)",20,"g"]
[null,"ARANCINNI FOUR CHEESES (Transferable)",5,"Unit"]
[null,"SALT (Transferable)",1,"g"]
[null,"FRESH BASIL (Transferable)",2,"g"]
[null,"GRANA PADANO (Transferable)",5,"g"]
[null,"GARLIC AIOLI (Transferable)",40,"g"]
[null,"SAUCE CONTAINER 2OZ",1,"Unit"]
[null,"WHITE BOWL & LID SMALL 750ML",1,"Kitchen Unit(s)"]
[]
[null,"Mushroom & Saffron Arancini"]
[null,"ARUGULA (Transferable)",10,"g"]
[null,"CHERRY TOMATO RED (Transferable)",10,"g"]
[null,"GRANA PADANO (Transferable)",5,"g"]
[null,"ARANCINNI MUSHROOMS (Transferable)",5,"Unit"]
[null,"SALT (Transferable)",1,"g"]
[null,"TRUFFLE MUSHROOM SAUCE (Transferable)",40,"g"]
[null,"SAUCE CONTAINER 2OZ",1,"Unit"]
[null,"WHITE BOWL & LID SMALL 750ML",1,"Kitchen Unit(s)"]
[]
[null,"Sicilian Meat Balls - Meatballs  & Tomato Sauce"]
[null,"BEEF MEATBALLS (Transferable)",100,"g"]
[null,"POMODORO SAUCE (Transferable)",120,"g"]
[null,"GRANA PADANO (Transferable)",5,"g"]
[null,"FRESH BASIL (Transferable)",2,"g"]
[null,"WHITE BOWL & LID SMALL 750ML",1,"Kitchen Unit(s)"]
[]
[]
[null,"Mac N Cheese"]
["350g","z MAC N CHEESE (Portioned)",1,"Unit"]
[null,"CHEDDAR CHEESE SAUCE (CANNED)",40,"g"]
[null,"WHITE BOWL & LID SMALL 750ML",1,"Kitchen Unit(s)"]
[]
[null,"Little Chef's Bolognese"]
[null,"BOLOGNESE SAUCE (Transferable)",110,"g"]
[null,"POMODORO SAUCE (Transferable)",50,"g"]
[null,"VEGETABLE STOCK (Transferable)",75,"g"]
[null,"SALT (Transferable)",1,"g"]
[null,"BLACK PEPPER POWDER (Transferable)",1,"g"]
[null,"Z SPAGHETTI PASTA (Cooked)",100,"g"]
[null,"PARSLEY (Transferable)",1,"g"]
[null,"OLIVE OIL (Transferable)",3,"g"]
[null,"BUTTER (Transferable)",5,"g"]
[null,"GRANA PADANO (Transferable)",10,"g"]
[null,"FRESH BASIL (Transferable)",1,"g"]
[null,"GRANA PADANO (Transferable)",3,"g"]
[null,"WHITE BOWL & LID 1000ML SWHK",1,"Kitchen Unit(s)"]
[]
[null,"Little Chef's Pink Pasta"]
[null,"POMODORO SAUCE (Transferable)",100,"g"]
[null,"ALFREDO SAUCE (Transferable)",75,"g"]
[null,"SALT (Transferable)",1,"g"]
[null,"BLACK PEPPER POWDER (Transferable)",1,"g"]
[null,"VEGETABLE STOCK (Transferable)",50,"g"]
[null,"Z PENNE PASTA",100,"g"]
[null,"BUTTER (Transferable)",8,"g"]
[null,"GRANA PADANO (Transferable)",10,"g"]
[null,"FRESH BASIL (Transferable)",1,"g"]
[null,"GRANA PADANO (Transferable)",5,"g"]
[null,"FRESH BASIL (Transferable)",1,"g"]
[null,"PARSLEY (Transferable)",1,"g"]
[null,"WHITE BOWL & LID 1000ML SWHK",1,"Kitchen Unit(s)"]

{"sheet":"Sheet2","index":4,"n_rows":35,"n_cols":4,"rows_kept":35,"cut":false,"hidden":false,"merged":[]}
[]
[null,"BYO PASTA + FRIES"]
[]
[null,"Choose your Pasta"]
[null,"Spaghetti","Z SPAGHETTI PASTA (Cooked)",200]
[null,"Rigatoni","Z RIGATONI PASTA (Cooked)",200]
[null,"Fetuccini","Z FETTUCCINI PASTA COOKED",180]
[null,"Tagliatelle","TAGLIATELLE PASTA (Transferable)",180]
[null,"Penne","Z PENNE PASTA",200]
[]
[null,"Choose your Fries"]
[null,"French Fries Regular","Z FRENCH FRIES",150]
[null,"French Fries Large","Z FRENCH FRIES",250]
[null," "]
[null," "]
[null,"Choose yoru Pasta Sauce"]
[null,"Bolognese","BOLOGNESE SAUCE (Transferable)",150]
[null,"Arrabbiata","Z ARRABIATA SAUCE",1]
[null,"Alfredo","ALFREDO SAUCE (Transferable)",200]
[null,"Puttanesca","Z PUTTANESCA SAUCE",1]
[null,"Pink Sauce","Z PINK SAUCE",1]
[null,"Basil Pesto","PESTO SAUCE (Transferable) (SC)",150]
[]
[null,"Z ARRABIATA SAUCE"]
{"$rows_empty":8}
[null,"1. This sauce needs to be done when you have and order"]
[null,"2. Please add garlic oil 2grams to this recipe"]
[null,"DO NOT MAKE AHEAD OF TIME!!!"]

{"sheet":"KSA Bom","index":5,"n_rows":280,"n_cols":4,"rows_kept":280,"cut":false,"hidden":false,"merged":[[175,4,183,4],[2,4,16,4],[19,4,33,4],[36,4,50,4],[53,4,71,4],[74,4,87,4],[90,4,102,4],[105,4,118,4],[121,4,133,4],[136,4,143,4],[146,4,163,4],[166,4,172,4],[252,4,264,4],[267,4,279,4],[239,4,244,4],[186,4,193,4],[196,4,205,4],[209,4,216,4],[219,4,226,4],[229,4,236,4],[247,4,249,4]]}
[null,"PASTA & CO"]
[null,"Truffle Mushroom Fettuccini"]
[null,"OLIVE OIL (Transferable)",15,"g"]
[null,"WHITE ONION (Transferable)",3,"g"]
[null,"GARLIC WHOLE (Transferable)",2,"gr"]
[null,"MUSHROOM MIXTURE (Transferable)",40,"g"]
[null,"ALFREDO SAUCE (Transferable)",200,"g"]
[null,"VEGETABLE STOCK (Transferable)",80,"g"]
[null,"SALT (Transferable)",3,"g"]
[null,"BLACK PEPPER POWDER (Transferable)",1,"g"]
[null,"BLACK TRUFFLE PASTE (Transferable)",15,"g"]
[null,"Z FETTUCCINI PASTA COOKED",180,"g"]
[null,"GRANA PADANO (Transferable)",15,"g"]
[null,"BUTTER (Transferable)",15,"g"]
[null,"PARSLEY (Transferable)",1,"g"]
[null,"GRANA PADANO (Transferable)",5,"g"]
[null,"WHITE BOWL & LID 1000ML SWHK",1,"Kitchen Unit(s)"]
[]
[null,"Chicken Fettuccini Alfredo"]
[null,"OLIVE OIL (Transferable)",10,"g"]
[null,"GARLIC WHOLE (Transferable)",3,"gr"]
[null,"Z GRILLED CHICKEN (CUBES)",65,"g"]
[null,"ROASTED MUSHROOM (Transferable)",30,"g"]
[null,"ALFREDO SAUCE (Transferable)",200,"g"]
[null,"VEGETABLE STOCK (Transferable)",80,"g"]
[null,"SALT (Transferable)",1,"g"]
[null,"BLACK PEPPER POWDER (Transferable)",1,"g"]
[null,"Z FETTUCCINI PASTA COOKED",180,"g"]
[null,"BUTTER (Transferable)",15,"g"]
[null,"PARSLEY (Transferable)",1,"g"]
[null,"GRANA PADANO (Transferable)",15,"g"]
[null,"GRANA PADANO (Transferable)",5,"g"]
[null,"PARSLEY (Transferable)",1,"g"]
[null,"WHITE BOWL & LID 1000ML SWHK",1,"Kitchen Unit(s)"]
[]
[null,"Chicken Penne Alfredo"]
[null,"OLIVE OIL (Transferable)",10,"g"]
[null,"GARLIC WHOLE (Transferable)",3,"gr"]
[null,"Z GRILLED CHICKEN (CUBES)",65,"g"]
[null,"MUSHROOM MIXTURE (Transferable)",30,"g"]
[null,"ALFREDO SAUCE (Transferable)",200,"g"]
[null,"VEGETABLE STOCK (Transferable)",80,"g"]
[null,"SALT (Transferable)",1,"g"]
[null,"BLACK PEPPER POWDER (Transferable)",1,"g"]
[null,"Z PENNE PASTA",200,"g"]
[null,"BUTTER (Transferable)",15,"g"]
[null,"GRANA PADANO (Transferable)",15,"g"]
[null,"PARSLEY (Transferable)",1,"g"]
[null,"GRANA PADANO (Transferable)",5,"g"]
[null,"PARSLEY (Transferable)",1,"g"]
[null,"WHITE BOWL & LID 1000ML SWHK",1,"Kitchen Unit(s)"]
[]
[null,"Linguine Frutti di Mare"]
[null,"OLIVE OIL (Transferable)",15,"g"]
[null,"WHITE ONION (Transferable)",5,"g"]
[null,"GARLIC WHOLE (Transferable)",3,"gr"]
[null,"CHERRY TOMATO RED (Transferable)",30,"g"]
[null,"Z SHRIMP RAW (thawed)",80,"g"]
[null,"SQUID RING (Transferable)",30,"g"]
[null,"CHILI FLAKES (Transferable)",1,"g"]
[null,"POMODORO SAUCE (Transferable)",200,"g"]
[null,"VEGETABLE STOCK (Transferable)",80,"g"]
[null,"SALT (Transferable)",1,"g"]
[null,"BLACK PEPPER POWDER (Transferable)",1,"g"]
[null,"BUTTER (Transferable)",10,"g"]
[null,"Z LINGUINE PASTA",1,"Unit"]
[null,"GRANA PADANO (Transferable)",15,"g"]
[null,"ALFREDO SAUCE (Transferable)",20,"g"]
[null,"FRESH BASIL (Transferable)",2,"g"]
[null,"GRANA PADANO (Transferable)",5,"g"]
[null,"FRESH BASIL (Transferable)",2,"g"]
[null,"WHITE BOWL & LID 1000ML SWHK",1,"Kitchen Unit(s)"]
[]
[null,"Rigatoni Amatriciana"]
[null,"OLIVE OIL (Transferable)",15,"g"]
[null,"CRISPY BEEF BACON (Transferable)",30,"g"]
[null,"CARAMELIZED ONION (Transferable)",20,"g"]
[null,"POMODORO SAUCE (Transferable)",200,"g"]
[null,"VEGETABLE STOCK (Transferable)",80,"g"]
[null,"SALT (Transferable)",1,"g"]
[null,"BLACK PEPPER POWDER (Transferable)",1,"g"]
[null,"Z RIGATONI PASTA (Cooked)",200,"g"]
[null,"BUTTER (Transferable)",10,"g"]
[null,"GRANA PADANO (Transferable)",15,"g"]
[null,"PARSLEY (Transferable)",1,"g"]
[null,"GRANA PADANO (Transferable)",5,"g"]
[null,"CRISPY BEEF BACON (Transferable)",10,"g"]
[null,"WHITE BOWL & LID 1000ML SWHK",1,"Kitchen Unit(s)"]
[]
[null,"Penne Pink Pasta"]
[null,"POMODORO SAUCE (Transferable)",200,"g"]
[null,"ALFREDO SAUCE (Transferable)",150,"g"]
[null,"SALT (Transferable)",1,"g"]
[null,"BLACK PEPPER POWDER (Transferable)",1,"g"]
[null,"VEGETABLE STOCK (Transferable)",80,"g"]
[null,"Z PENNE PASTA",200,"g"]
[null,"BUTTER (Transferable)",15,"g"]
[null,"GRANA PADANO (Transferable)",15,"g"]
[null,"FRESH BASIL (Transferable)",2,"g"]
[null,"GRANA PADANO (Transferable)",5,"g"]
[null,"FRESH BASIL (Transferable)",1,"g"]
[null,"PARSLEY (Transferable)",1,"g"]
[null,"WHITE BOWL & LID 1000ML SWHK",1,"Kitchen Unit(s)"]
[]
[null,"Penne Arrabiatta"]
[null,"OLIVE OIL (Transferable)",10,"g"]
[null,"GARLIC WHOLE (Transferable)",3,"gr"]
[null,"CHILI FLAKES (Transferable)",1,"g"]
[null,"CHERRY TOMATO RED (Transferable)",30,"g"]
[null,"POMODORO SAUCE (Transferable)",200,"g"]
[null,"VEGETABLE STOCK (Transferable)",80,"g"]
[null,"SALT (Transferable)",2,"g"]
[null,"BLACK PEPPER POWDER (Transferable)",1,"g"]
[null,"Z PENNE PASTA",200,"g"]
[null,"BUTTER (Transferable)",10,"g"]
[null,"FRESH BASIL (Transferable)",2,"g"]
[null,"GRANA PADANO (Transferable)",5,"g"]
[null,"FRESH BASIL (Transferable)",1,"g"]
[null,"WHITE BOWL & LID 1000ML SWHK",1,"Kitchen Unit(s)"]
[]
[null,"Spaghetti Bolognese"]
[null,"BOLOGNESE SAUCE (Transferable)",220,"g"]
[null,"POMODORO SAUCE (Transferable)",100,"g"]
[null,"VEGETABLE STOCK (Transferable)",80,"g"]
[null,"SALT (Transferable)",1,"g"]
[null,"BLACK PEPPER POWDER (Transferable)",1,"g"]
[null,"Z SPAGHETTI PASTA (Cooked)",200,"g"]
[null,"PARSLEY (Transferable)",1,"g"]
[null,"OLIVE OIL (Transferable)",5,"g"]
[null,"BUTTER (Transferable)",10,"g"]
[null,"GRANA PADANO (Transferable)",15,"g"]
[null,"FRESH BASIL (Transferable)",2,"g"]
[null,"GRANA PADANO (Transferable)",5,"g"]
[null,"WHITE BOWL & LID 1000ML SWHK",1,"Kitchen Unit(s)"]
[]
[null,"Lasagna Bolognese"]
[null,"LASAGNA BOLOGNESE (Transferable)",1,"Unit"]
[null,"POMODORO SAUCE (Transferable)",30,"g"]
[null,"ALFREDO SAUCE (Transferable)",30,"g"]
[null,"VEGETABLE STOCK (Transferable)",15,"g"]
[null,"MOZZARELLA SHREDDED (Transferable)",10,"g"]
[null,"GRANA PADANO (Transferable)",5,"g"]
[null,"FRESH BASIL (Transferable)",1,"g"]
[null,"WHITE BOWL & LID SMALL 750ML",1,"Kitchen Unit(s)"]
[]
[null,"Spaghetti Puttanesca"]
[null,"OLIVE OIL (Transferable)",15,"g"]
[null,"GARLIC WHOLE (Transferable)",3,"gr"]
[null,"WHITE ONION (Transferable)",5,"g"]
[null,"ANCHOVIES (Transferable)",15,"g"]
[null,"KALAMATA OLIVES (Transferable)",20,"g"]
[null,"CHERRY TOMATO RED (Transferable)",30,"g"]
[null,"CAPERS (Transferable)",10,"g"]
[null,"POMODORO SAUCE (Transferable)",200,"g"]
[null,"VEGETABLE STOCK (Transferable)",80,"g"]
[null,"SALT (Transferable)",1,"g"]
[null,"BLACK PEPPER POWDER (Transferable)",1,"g"]
[null,"Z SPAGHETTI PASTA (Cooked)",200,"g"]
[null,"PARSLEY (Transferable)",1,"g"]
[null,"FRESH BASIL (Transferable)",1,"g"]
[null,"GRANA PADANO (Transferable)",15,"g"]
[null,"CAPERS (Transferable)",5,"g"]
[null,"GRANA PADANO (Transferable)",5,"g"]
[null,"WHITE BOWL & LID 1000ML SWHK",1,"Kitchen Unit(s)"]
[]
[null,"Chicken Caesar Salad"]
[null,"ROMAINE (Transferable)",100,"g"]
[null,"Z GRILLED CHICKEN (SLICED)",80,"g"]
[null,"GRANA PADANO (Transferable)",15,"g"]
[null,"CROUTONS (Transferable)",12,"g"]
[null,"CAESAR DRESSING (Transferable)",50,"g"]
[null,"WHITE BOWL & LID LARGE 100ML",1,"Kitchen Unit(s)"]
[null,"SAUCE CONTAINER 4OZ",1,"Unit"]
[]
[null,"Chicken Penne Salad"]
[null,"ARUGULA (Transferable)",15,"g"]
[null,"Z PENNE PASTA",150,"g"]
[null,"Z GRILLED CHICKEN (SLICED)",80,"g"]
[null,"CHERRY TOMATO RED (Transferable)",30,"g"]
[null,"BLACK OLIVES (Transferable)",20,"g"]
[null,"MOZZARELLA BALLS (Transferable)",30,"g"]
[null,"PESTO SAUCE (Transferable) (SC)",40,"g"]
[null,"SAUCE CONTAINER 2OZ",1,"Unit"]
[null,"WHITE BOWL & LID SMALL 1000ML",1,"Kitchen Unit(s)"]
[]
[null,"Sicilian Tuna Pasta Salad"]
[null,"Z FUSILLI PASTA (Cooked)",180,"g"]
[null,"TUNA MIX (Transferable)",60,"g"]
[null,"SWEET CORN (Transferable)",40,"g"]
[null,"SPRING ONIONS CUT (Transferable)",15,"g"]
[null,"SUNDRIED TOMATO (Transferable)",30,"g"]
[null,"LEMON AND OLIVE OIL (Transferable)",40,"g"]
[null,"SAUCE CONTAINER 2OZ",1,"Unit"]
[null,"WHITE BOWL & LID 1000ML SWHK",1,"Kitchen Unit(s)"]
[]
[null,"Fusilli Pasta Salad"]
[null,"Z FUSILLI PASTA (Cooked)",150,"g"]
[null,"BABY SPINACH (Transferable)",30,"g"]
[null,"SUNDRIED TOMATO (Transferable)",30,"g"]
[null,"CHERRY TOMATO RED (Transferable)",40,"g"]
[null,"BLACK OLIVES (Transferable)",10,"g"]
[null,"FETA (Transferable)",40,"g"]
[null,"RED ONION SLICED (Transferable)",2,"g"]
[null,"GREEK VINAIGRETTE (Transferable)",40,"g"]
[null,"SAUCE CONTAINER 2OZ",1,"Unit"]
[null,"WHITE BOWL & LID LARGE 1000ML",1,"Kitchen Unit(s)"]
[]
[null,"Caprese Salad"]
[]
[null,"ARUGULA (Transferable)",15,"g"]
[null,"TOMATO (Transferable)",140,"g"]
[null,"MOZZARELLA BUFFALO (Transferable)",100,"g"]
[null,"PESTO SAUCE (Transferable) (SC)",10,"g"]
[null,"FRESH BASIL (Transferable)",3,"g"]
[null,"BALSAMIC GLAZE",10,"g"]
[null,"OLIVE OIL (Transferable)",5,"g"]
[null,"WHITE BOWL & LID LARGE 1000ML",1,"Kitchen Unit(s)"]
[]
[null,"Four Cheese Arancini"]
[null,"MIXED GREENS (Transferable)",20,"g"]
[null,"ARANCINNI FOUR CHEESES (Transferable)",5,"Unit"]
[null,"SALT (Transferable)",1,"g"]
[null,"FRESH BASIL (Transferable)",2,"g"]
[null,"GRANA PADANO (Transferable)",5,"g"]
[null,"GARLIC AIOLI (Transferable)",40,"g"]
[null,"SAUCE CONTAINER 2OZ",1,"Unit"]
[null,"WHITE BOWL & LID SMALL 750ML",1,"Kitchen Unit(s)"]
[]
[null,"Mushroom & Saffron Arancini"]
[null,"ARUGULA (Transferable)",10,"g"]
[null,"CHERRY TOMATO RED (Transferable)",10,"g"]
[null,"GRANA PADANO (Transferable)",5,"g"]
[null,"ARANCINNI MUSHROOMS (Transferable)",5,"Unit"]
[null,"SALT (Transferable)",1,"g"]
[null,"TRUFFLE MUSHROOM SAUCE (Transferable)",40,"g"]
[null,"SAUCE CONTAINER 2OZ",1,"Unit"]
[null,"WHITE BOWL & LID SMALL 750ML",1,"Kitchen Unit(s)"]
[]
[null,"Sicilian Meat Balls - Meatballs  & Tomato Sauce"]
[null,"BEEF MEATBALLS (Transferable)",100,"g"]
[null,"POMODORO SAUCE (Transferable)",120,"g"]
[null,"GRANA PADANO (Transferable)",5,"g"]
[null,"FRESH BASIL (Transferable)",2,"g"]
[null,"WHITE BOWL & LID SMALL 750ML",1,"Kitchen Unit(s)"]
[]
[]
[null,"Mac N Cheese"]
["350g","z MAC N CHEESE (Portioned)",1,"Unit"]
[null,"CHEDDAR CHEESE SAUCE (CANNED)",40,"g"]
[null,"WHITE BOWL & LID SMALL 750ML",1,"Kitchen Unit(s)"]
[]
[null,"Little Chef's Bolognese"]
[null,"BOLOGNESE SAUCE (Transferable)",110,"g"]
[null,"POMODORO SAUCE (Transferable)",50,"g"]
[null,"VEGETABLE STOCK (Transferable)",75,"g"]
[null,"SALT (Transferable)",1,"g"]
[null,"BLACK PEPPER POWDER (Transferable)",1,"g"]
[null,"Z SPAGHETTI PASTA (Cooked)",100,"g"]
[null,"PARSLEY (Transferable)",1,"g"]
[null,"OLIVE OIL (Transferable)",3,"g"]
[null,"BUTTER (Transferable)",5,"g"]
[null,"GRANA PADANO (Transferable)",10,"g"]
[null,"FRESH BASIL (Transferable)",1,"g"]
[null,"GRANA PADANO (Transferable)",3,"g"]
[null,"WHITE BOWL & LID SMALL 750ML",1,"Kitchen Unit(s)"]
[]
[null,"Little Chef's Pink Pasta"]
[null,"POMODORO SAUCE (Transferable)",100,"g"]
[null,"ALFREDO SAUCE (Transferable)",75,"g"]
[null,"SALT (Transferable)",1,"g"]
[null,"BLACK PEPPER POWDER (Transferable)",1,"g"]
[null,"VEGETABLE STOCK (Transferable)",50,"g"]
[null,"Z PENNE PASTA",100,"g"]
[null,"BUTTER (Transferable)",8,"g"]
[null,"GRANA PADANO (Transferable)",10,"g"]
[null,"FRESH BASIL (Transferable)",1,"g"]
[null,"GRANA PADANO (Transferable)",5,"g"]
[null,"FRESH BASIL (Transferable)",1,"g"]
[null,"PARSLEY (Transferable)",1,"g"]
[null,"WHITE BOWL & LID SMALL 750ML",1,"Kitchen Unit(s)"]